[Event "Titled Tuesday Blitz May 16 Early 2023"]
[White "Rodchenkov, Sergey D."]
[Black "Smith, Shreyas"]
[WhiteFideId "4168712"]
[BlackFideId "7400713"]
[WhiteElo "2277"]
[BlackElo "2151"]
[Result "0-1"]
[Round "06"]
[TimeControl "180+2"]
[Date "2023.05.16"]
[WhiteClock "0:02:28"]
[BlackClock "0:02:11"]

1. e4 {[%clk 0:03:00]}  c5 {[%clk 0:02:59]} 2. Nf3 {[%clk 0:03:01]}  Nc6 {[%clk 0:02:59]} 3. d4 {[%clk 0:03:02]}  cxd4 {[%clk 0:03:00]} 4. Nxd4 {[%clk 0:03:03]}  e5 {[%clk 0:03:00]} 5. Nb5 {[%clk 0:03:01]}  d6 {[%clk 0:03:01]} 6. c4 {[%clk 0:03:01]}  Be7 {[%clk 0:03:00]} 7. N5c3 {[%clk 0:03:00]}  Nf6 {[%clk 0:02:55]} 8. Be2 {[%clk 0:02:59]}  O-O {[%clk 0:02:54]} 9. O-O {[%clk 0:03:00]}  Nd4 {[%clk 0:02:52]} 10. Be3 {[%clk 0:02:58]}  Nxe2+ {[%clk 0:02:50]} 11. Qxe2 {[%clk 0:02:59]}  Be6 {[%clk 0:02:50]} 12. f3 {[%clk 0:02:54]}  a6 {[%clk 0:02:48]} 13. Nd2 {[%clk 0:02:48]}  Nh5 {[%clk 0:02:46]} 14. Rfd1 {[%clk 0:02:43]}  Bg5 {[%clk 0:02:39]} 15. Nf1 {[%clk 0:02:40]}  Rc8 {[%clk 0:02:27]} 16. b3 {[%clk 0:02:36]}  b5 {[%clk 0:02:25]} 17. Nd5 {[%clk 0:02:32]}  Bxd5 {[%clk 0:02:19]} 18. Rxd5 {[%clk 0:02:30]}  Bxe3+ {[%clk 0:02:14]} 19. Nxe3 {[%clk 0:02:31]}  Nf4 {[%clk 0:02:12]} 20. Rd2 {[%clk 0:02:28]}  Nxe2+ {[%clk 0:02:11]} 0-1


[Site "https://www.chess.com"]

[Event "Titled Tuesday Blitz May 16 Early 2023"]
[White "De Souza, Cristiano Gomes"]
[Black "Liu, Casper"]
[WhiteFideId "2151758"]
[BlackFideId "1454153"]
[WhiteElo "2068"]
[BlackElo "2221"]
[Result "0-1"]
[Round "06"]
[TimeControl "180+2"]
[Date "2023.05.16"]
[WhiteClock "0:01:09"]
[BlackClock "0:00:49"]

1. d4 {[%clk 0:03:00]}  c5 {[%clk 0:02:58]} 2. d5 {[%clk 0:03:00]}  g6 {[%clk 0:02:58]} 3. c4 {[%clk 0:02:59]}  Bg7 {[%clk 0:02:58]} 4. Nf3 {[%clk 0:02:59]}  d6 {[%clk 0:02:57]} 5. Nc3 {[%clk 0:02:58]}  f5 {[%clk 0:02:57]} 6. Bd2 {[%clk 0:02:55]}  Nf6 {[%clk 0:02:56]} 7. Qc2 {[%clk 0:02:55]}  O-O {[%clk 0:02:56]} 8. e4 {[%clk 0:02:55]}  fxe4 {[%clk 0:02:55]} 9. Ng5 {[%clk 0:02:54]}  Bf5 {[%clk 0:02:54]} 10. Ngxe4 {[%clk 0:02:48]}  Nbd7 {[%clk 0:02:54]} 11. Bd3 {[%clk 0:02:47]}  Ne5 {[%clk 0:02:54]} 12. Nxf6+ {[%clk 0:02:46]}  Rxf6 {[%clk 0:02:53]} 13. Bxf5 {[%clk 0:02:47]}  Rxf5 {[%clk 0:02:54]} 14. Ne4 {[%clk 0:02:44]}  h6 {[%clk 0:02:33]} 15. O-O {[%clk 0:02:38]}  Kh7 {[%clk 0:02:31]} 16. Rae1 {[%clk 0:02:37]}  Qd7 {[%clk 0:02:30]} 17. f4 {[%clk 0:02:34]}  Ng4 {[%clk 0:02:22]} 18. Bc3 {[%clk 0:02:23]}  Bd4+ {[%clk 0:01:45]} 19. Bxd4 {[%clk 0:02:20]}  cxd4 {[%clk 0:01:46]} 20. h3 {[%clk 0:02:19]}  Ne3 {[%clk 0:01:44]} 21. Rxe3 {[%clk 0:02:19]}  dxe3 {[%clk 0:01:45]} 22. Qd3 {[%clk 0:02:16]}  Qa4 {[%clk 0:01:33]} 23. Qxe3 {[%clk 0:02:10]}  Qxc4 {[%clk 0:01:29]} 24. Ng3 {[%clk 0:02:03]}  Rf7 {[%clk 0:01:27]} 25. f5 {[%clk 0:02:02]}  Qxd5 {[%clk 0:01:19]} 26. fxg6+ {[%clk 0:02:01]}  Kxg6 {[%clk 0:01:20]} 27. Rxf7 {[%clk 0:01:51]}  Kxf7 {[%clk 0:01:07]} 28. Qxh6 {[%clk 0:01:50]}  Rg8 {[%clk 0:01:08]} 29. Qh7+ {[%clk 0:01:44]}  Rg7 {[%clk 0:01:06]} 30. Qf5+ {[%clk 0:01:44]}  Qxf5 {[%clk 0:01:05]} 31. Nxf5 {[%clk 0:01:44]}  Rg5 {[%clk 0:01:05]} 32. Ne3 {[%clk 0:01:44]}  d5 {[%clk 0:00:56]} 33. Kf2 {[%clk 0:01:41]}  d4 {[%clk 0:00:57]} 34. Nc4 {[%clk 0:01:40]}  Rc5 {[%clk 0:00:56]} 35. b3 {[%clk 0:01:39]}  b5 {[%clk 0:00:56]} 36. Na3 {[%clk 0:01:33]}  e5 {[%clk 0:00:54]} 37. Kf3 {[%clk 0:01:31]}  Rc3+ {[%clk 0:00:48]} 38. Ke4 {[%clk 0:01:09]}  Ke6 {[%clk 0:00:49]} 0-1


[Site "https://www.chess.com"]

[Event "Titled Tuesday Blitz May 16 Early 2023"]
[White "Flis, Pawel"]
[Black "Aarav Dengla"]
[WhiteFideId "1112864"]
[BlackFideId "45059756"]
[WhiteElo "1822"]
[BlackElo "2288"]
[Result "0-1"]
[Round "06"]
[TimeControl "180+2"]
[Date "2023.05.16"]
[WhiteClock "0:00:00"]
[BlackClock "0:01:38"]

1. e4 {[%clk 0:02:56]}  c5 {[%clk 0:02:55]} 2. Nf3 {[%clk 0:02:55]}  d6 {[%clk 0:02:56]} 3. d4 {[%clk 0:02:55]}  cxd4 {[%clk 0:02:56]} 4. Nxd4 {[%clk 0:02:55]}  Nf6 {[%clk 0:02:57]} 5. Nc3 {[%clk 0:02:56]}  a6 {[%clk 0:02:58]} 6. Bg5 {[%clk 0:02:55]}  e6 {[%clk 0:02:58]} 7. f4 {[%clk 0:02:55]}  Be7 {[%clk 0:02:57]} 8. Qf3 {[%clk 0:02:55]}  h6 {[%clk 0:02:57]} 9. Bh4 {[%clk 0:02:54]}  Nbd7 {[%clk 0:02:58]} 10. O-O-O {[%clk 0:02:54]}  g5 {[%clk 0:02:58]} 11. fxg5 {[%clk 0:02:50]}  hxg5 {[%clk 0:02:59]} 12. Bxg5 {[%clk 0:02:47]}  Ne5 {[%clk 0:02:59]} 13. Qf4 {[%clk 0:01:42]}  Nh5 {[%clk 0:02:29]} 14. Bxe7 {[%clk 0:01:39]}  Nxf4 {[%clk 0:02:27]} 15. Bxd8 {[%clk 0:01:38]}  Kxd8 {[%clk 0:02:28]} 16. g3 {[%clk 0:01:33]}  Nh3 {[%clk 0:02:27]} 17. Bxh3 {[%clk 0:01:19]}  Rxh3 {[%clk 0:02:28]} 18. Rdf1 {[%clk 0:01:19]}  Bd7 {[%clk 0:02:15]} 19. Nf3 {[%clk 0:01:18]}  Nxf3 {[%clk 0:02:14]} 20. Rxf3 {[%clk 0:01:19]}  Ke7 {[%clk 0:02:15]} 21. Rhf1 {[%clk 0:01:17]}  Rf8 {[%clk 0:02:13]} 22. R1f2 {[%clk 0:01:16]}  Be8 {[%clk 0:02:13]} 23. Ne2 {[%clk 0:01:12]}  Rfh8 {[%clk 0:02:12]} 24. Rb3 {[%clk 0:00:33]}  Bc6 {[%clk 0:01:58]} 25. Rbf3 {[%clk 0:00:28]}  R8h7 {[%clk 0:01:50]} 26. Rf4 {[%clk 0:00:19]}  Be8 {[%clk 0:01:48]} 27. Nd4 {[%clk 0:00:12]}  Rxh2 {[%clk 0:01:47]} 28. b3 {[%clk 0:00:12]}  Rh1+ {[%clk 0:01:45]} 29. Kb2 {[%clk 0:00:12]}  Rg1 {[%clk 0:01:45]} 30. g4 {[%clk 0:00:10]}  Rg7 {[%clk 0:01:44]} 31. g5 {[%clk 0:00:06]}  R1xg5 {[%clk 0:01:41]} 32. Rh4 {[%clk 0:00:06]}  Rg3 {[%clk 0:01:40]} 33. Rd2 {[%clk 0:00:04]}  Re3 {[%clk 0:01:38]} 34. a4 {[%clk 0:00:00]}  Rg5 {[%clk 0:01:38]} 0-1


[Site "https://www.chess.com"]

[Event "Titled Tuesday Blitz May 16 Early 2023"]
[White "Reprintsev, Alexander"]
[Black "Mikhaylova, Irina"]
[WhiteFideId "14100541"]
[BlackFideId "4109040"]
[WhiteElo "2218"]
[BlackElo "1975"]
[Result "1/2-1/2"]
[Round "06"]
[TimeControl "180+2"]
[Date "2023.05.16"]
[WhiteClock "0:00:10"]
[BlackClock "0:00:17"]

1. e4 {[%clk 0:02:58]}  c5 {[%clk 0:02:59]} 2. b3 {[%clk 0:02:54]}  Nf6 {[%clk 0:02:59]} 3. e5 {[%clk 0:02:53]}  Nd5 {[%clk 0:02:59]} 4. Nc3 {[%clk 0:02:53]}  Nxc3 {[%clk 0:02:59]} 5. dxc3 {[%clk 0:02:53]}  d5 {[%clk 0:02:59]} 6. exd6 {[%clk 0:02:47]}  Qxd6 {[%clk 0:02:52]} 7. Qxd6 {[%clk 0:02:44]}  exd6 {[%clk 0:02:52]} 8. Bc4 {[%clk 0:02:42]}  Be6 {[%clk 0:02:51]} 9. Bxe6 {[%clk 0:02:40]}  fxe6 {[%clk 0:02:52]} 10. Ne2 {[%clk 0:02:40]}  Nc6 {[%clk 0:02:51]} 11. Nf4 {[%clk 0:02:37]}  Kd7 {[%clk 0:02:48]} 12. Be3 {[%clk 0:02:33]}  Re8 {[%clk 0:02:41]} 13. O-O-O {[%clk 0:02:32]}  Kc7 {[%clk 0:02:42]} 14. Rhe1 {[%clk 0:02:32]}  Nd8 {[%clk 0:02:26]} 15. f3 {[%clk 0:02:30]}  Be7 {[%clk 0:02:24]} 16. Re2 {[%clk 0:02:26]}  Bf6 {[%clk 0:02:18]} 17. c4 {[%clk 0:02:21]}  Rhf8 {[%clk 0:02:10]} 18. g3 {[%clk 0:02:10]}  Bg5 {[%clk 0:01:57]} 19. Nh5 {[%clk 0:02:03]}  Bxe3+ {[%clk 0:01:49]} 20. Rxe3 {[%clk 0:02:03]}  g6 {[%clk 0:01:50]} 21. Nf4 {[%clk 0:02:03]}  g5 {[%clk 0:01:28]} 22. Nd3 {[%clk 0:02:00]}  Rf6 {[%clk 0:01:15]} 23. Nf2 {[%clk 0:01:59]}  Rg6 {[%clk 0:01:07]} 24. Red3 {[%clk 0:01:52]}  Nf7 {[%clk 0:01:06]} 25. c3 {[%clk 0:01:49]}  h5 {[%clk 0:01:02]} 26. Ne4 {[%clk 0:01:44]}  Rd8 {[%clk 0:01:02]} 27. b4 {[%clk 0:01:42]}  b6 {[%clk 0:01:02]} 28. Kc2 {[%clk 0:01:40]}  g4 {[%clk 0:00:58]} 29. f4 {[%clk 0:01:40]}  Rgg8 {[%clk 0:00:58]} 30. a4 {[%clk 0:01:29]}  Rh8 {[%clk 0:00:56]} 31. a5 {[%clk 0:01:25]}  h4 {[%clk 0:00:56]} 32. Nf6 {[%clk 0:01:15]}  hxg3 {[%clk 0:00:55]} 33. hxg3 {[%clk 0:01:15]}  Rh2+ {[%clk 0:00:50]} 34. Kb3 {[%clk 0:01:13]}  Nh6 {[%clk 0:00:46]} 35. Re3 {[%clk 0:01:06]}  cxb4 {[%clk 0:00:20]} 36. Rxe6 {[%clk 0:00:46]}  bxc3 {[%clk 0:00:20]} 37. Nd5+ {[%clk 0:00:45]}  Kc6 {[%clk 0:00:19]} 38. Re7 {[%clk 0:00:43]}  Rd7 {[%clk 0:00:19]} 39. Rxd7 {[%clk 0:00:38]}  Kxd7 {[%clk 0:00:19]} 40. axb6 {[%clk 0:00:38]}  axb6 {[%clk 0:00:19]} 41. Nxb6+ {[%clk 0:00:38]}  Kc6 {[%clk 0:00:20]} 42. Nd5 {[%clk 0:00:38]}  c2 {[%clk 0:00:21]} 43. Rc1 {[%clk 0:00:37]}  Nf5 {[%clk 0:00:21]} 44. Kb4 {[%clk 0:00:32]}  Nxg3 {[%clk 0:00:20]} 45. Ne3 {[%clk 0:00:30]}  Ne4 {[%clk 0:00:19]} 46. Nxc2 {[%clk 0:00:29]}  Nc5 {[%clk 0:00:18]} 47. Nd4+ {[%clk 0:00:29]}  Kc7 {[%clk 0:00:18]} 48. Rg1 {[%clk 0:00:24]}  Nd3+ {[%clk 0:00:17]} 49. Kc3 {[%clk 0:00:22]}  Nxf4 {[%clk 0:00:17]} 50. Rxg4 {[%clk 0:00:21]}  Rh3+ {[%clk 0:00:18]} 51. Kb4 {[%clk 0:00:20]}  Nd3+ {[%clk 0:00:17]} 52. Kb5 {[%clk 0:00:20]}  Rh5+ {[%clk 0:00:17]} 53. Ka6 {[%clk 0:00:16]}  Rh7 {[%clk 0:00:17]} 54. Rg3 {[%clk 0:00:15]}  Nc5+ {[%clk 0:00:17]} 55. Kb5 {[%clk 0:00:14]}  Ne4 {[%clk 0:00:17]} 56. Ra3 {[%clk 0:00:14]}  Rd7 {[%clk 0:00:16]} 57. Ra7+ {[%clk 0:00:14]}  Kd8 {[%clk 0:00:16]} 58. Ra6 {[%clk 0:00:14]}  Nc5 {[%clk 0:00:15]} 59. Ra8+ {[%clk 0:00:14]}  Ke7 {[%clk 0:00:15]} 60. Nc6+ {[%clk 0:00:14]}  Kf7 {[%clk 0:00:15]} 61. Rh8 {[%clk 0:00:13]}  Rb7+ {[%clk 0:00:16]} 62. Ka5 {[%clk 0:00:12]}  Nb3+ {[%clk 0:00:16]} 63. Ka4 {[%clk 0:00:12]}  Nc5+ {[%clk 0:00:16]} 64. Ka3 {[%clk 0:00:12]}  Rb6 {[%clk 0:00:16]} 65. Nd4 {[%clk 0:00:12]}  Ra6+ {[%clk 0:00:15]} 66. Kb4 {[%clk 0:00:11]}  Rb6+ {[%clk 0:00:16]} 67. Kc3 {[%clk 0:00:11]}  Na4+ {[%clk 0:00:15]} 68. Kd3 {[%clk 0:00:11]}  Nc5+ {[%clk 0:00:16]} 69. Ke3 {[%clk 0:00:11]}  Kg7 {[%clk 0:00:16]} 70. Rc8 {[%clk 0:00:09]}  Nb3 {[%clk 0:00:17]} 71. Ke4 {[%clk 0:00:09]}  Nxd4 {[%clk 0:00:16]} 72. Kxd4 {[%clk 0:00:09]}  Kf6 {[%clk 0:00:16]} 73. Kd5 {[%clk 0:00:09]}  Ke7 {[%clk 0:00:16]} 74. Rc7+ {[%clk 0:00:10]}  Kd8 {[%clk 0:00:16]} 75. Rc6 {[%clk 0:00:10]}  Rxc6 {[%clk 0:00:16]} 76. Kxc6 {[%clk 0:00:09]}  Ke7 {[%clk 0:00:16]} 77. Kd5 {[%clk 0:00:08]}  Kd7 {[%clk 0:00:17]} 78. c5 {[%clk 0:00:09]}  dxc5 {[%clk 0:00:17]} 79. Kxc5 {[%clk 0:00:10]} 1/2-1/2


[Site "https://www.chess.com"]

[Event "Titled Tuesday Blitz May 16 Early 2023"]
[White "lluiss"]
[Black "Ezat, Mohamed"]
[BlackFideId "10600906"]
[WhiteElo "2292"]
[BlackElo "2386"]
[Result "0-1"]
[Round "06"]
[TimeControl "180+2"]
[Date "2023.05.16"]
[WhiteClock "0:00:09"]
[BlackClock "0:01:22"]

1. Nf3 {[%clk 0:03:00]}  Nf6 {[%clk 0:02:54]} 2. c4 {[%clk 0:03:00]}  g6 {[%clk 0:02:48]} 3. g3 {[%clk 0:02:59]}  Bg7 {[%clk 0:02:48]} 4. Bg2 {[%clk 0:02:59]}  O-O {[%clk 0:02:47]} 5. O-O {[%clk 0:02:58]}  c5 {[%clk 0:02:44]} 6. Nc3 {[%clk 0:02:58]}  d5 {[%clk 0:02:43]} 7. cxd5 {[%clk 0:02:54]}  Nxd5 {[%clk 0:02:42]} 8. d4 {[%clk 0:02:54]}  Nc6 {[%clk 0:02:41]} 9. Nxd5 {[%clk 0:02:44]}  Qxd5 {[%clk 0:02:36]} 10. Ne5 {[%clk 0:02:42]}  Qxd4 {[%clk 0:02:34]} 11. Nxc6 {[%clk 0:02:35]}  bxc6 {[%clk 0:02:32]} 12. Bxc6 {[%clk 0:02:30]}  Rb8 {[%clk 0:02:32]} 13. Be3 {[%clk 0:02:02]}  Qf6 {[%clk 0:02:06]} 14. Qa4 {[%clk 0:01:51]}  Rb4 {[%clk 0:02:02]} 15. Qc2 {[%clk 0:01:30]}  Qxc6 {[%clk 0:02:01]} 16. Qxc5 {[%clk 0:01:28]}  Qxc5 {[%clk 0:02:00]} 17. Bxc5 {[%clk 0:01:28]}  Rxb2 {[%clk 0:02:00]} 18. Bxe7 {[%clk 0:01:28]}  Re8 {[%clk 0:01:59]} 19. Ba3 {[%clk 0:01:28]}  Rbxe2 {[%clk 0:01:59]} 20. Rac1 {[%clk 0:01:28]}  Bh3 {[%clk 0:01:58]} 21. Rfd1 {[%clk 0:01:20]}  Rxa2 {[%clk 0:01:56]} 22. Bc5 {[%clk 0:01:19]}  Bg4 {[%clk 0:01:50]} 23. Rd3 {[%clk 0:01:10]}  a5 {[%clk 0:01:38]} 24. Kg2 {[%clk 0:01:04]}  Bf5 {[%clk 0:01:37]} 25. Rb3 {[%clk 0:00:54]}  h5 {[%clk 0:01:34]} 26. h4 {[%clk 0:00:53]}  Rc8 {[%clk 0:01:30]} 27. Be3 {[%clk 0:00:28]}  Be4+ {[%clk 0:01:26]} 28. Kf1 {[%clk 0:00:16]}  Rxc1+ {[%clk 0:01:24]} 29. Bxc1 {[%clk 0:00:16]}  Ra1 {[%clk 0:01:23]} 30. Rb8+ {[%clk 0:00:15]}  Kh7 {[%clk 0:01:24]} 31. Rc8 {[%clk 0:00:09]}  Bb2 {[%clk 0:01:22]} 0-1


[Site "https://www.chess.com"]

[Event "Titled Tuesday Blitz May 16 Early 2023"]
[White "Petrovic, Aleksa"]
[Black "Sala, Giulia"]
[WhiteFideId "967629"]
[BlackFideId "2840451"]
[WhiteElo "2309"]
[BlackElo "1769"]
[Result "1-0"]
[Round "06"]
[TimeControl "180+2"]
[Date "2023.05.16"]
[WhiteClock "0:01:20"]
[BlackClock "0:01:07"]

1. e4 {[%clk 0:03:00]}  e6 {[%clk 0:02:58]} 2. d4 {[%clk 0:02:59]}  d5 {[%clk 0:02:58]} 3. Nd2 {[%clk 0:02:58]}  Nd7 {[%clk 0:02:56]} 4. Ngf3 {[%clk 0:02:56]}  c5 {[%clk 0:02:55]} 5. exd5 {[%clk 0:02:53]}  exd5 {[%clk 0:02:55]} 6. Be2 {[%clk 0:02:46]}  Ngf6 {[%clk 0:02:54]} 7. O-O {[%clk 0:02:43]}  Bd6 {[%clk 0:02:54]} 8. dxc5 {[%clk 0:02:41]}  Nxc5 {[%clk 0:02:54]} 9. Bb5+ {[%clk 0:02:39]}  Bd7 {[%clk 0:02:53]} 10. Re1+ {[%clk 0:02:39]}  Be7 {[%clk 0:02:53]} 11. Bxd7+ {[%clk 0:02:25]}  Qxd7 {[%clk 0:02:52]} 12. Qe2 {[%clk 0:02:21]}  Nfe4 {[%clk 0:02:41]} 13. Ne5 {[%clk 0:02:17]}  Qc7 {[%clk 0:02:38]} 14. Qb5+ {[%clk 0:01:58]}  Kf8 {[%clk 0:02:24]} 15. Nxe4 {[%clk 0:01:54]}  Qxe5 {[%clk 0:02:19]} 16. Bf4 {[%clk 0:01:46]}  Qxf4 {[%clk 0:02:04]} 17. Nxc5 {[%clk 0:01:46]}  Bd6 {[%clk 0:01:52]} 18. g3 {[%clk 0:01:34]}  Qc4 {[%clk 0:01:43]} 19. Qxb7 {[%clk 0:01:30]}  Rd8 {[%clk 0:01:33]} 20. Qd7 {[%clk 0:01:22]}  g6 {[%clk 0:01:07]} 21. Qxd8+ {[%clk 0:01:20]} 1-0


[Site "https://www.chess.com"]

[Event "Titled Tuesday Blitz May 16 Early 2023"]
[White "Antonio, Jorge Carlos"]
[Black "Sai Han Thiha"]
[WhiteFideId "113190"]
[BlackFideId "13012290"]
[WhiteElo "2247"]
[BlackElo "1954"]
[Result "0-1"]
[Round "06"]
[TimeControl "180+2"]
[Date "2023.05.16"]
[WhiteClock "0:00:00"]
[BlackClock "0:00:09"]

1. e4 {[%clk 0:03:00]}  c6 {[%clk 0:03:00]} 2. f4 {[%clk 0:03:00]}  d5 {[%clk 0:03:01]} 3. e5 {[%clk 0:02:58]}  c5 {[%clk 0:03:00]} 4. d4 {[%clk 0:02:49]}  cxd4 {[%clk 0:02:55]} 5. Nf3 {[%clk 0:02:50]}  Bg4 {[%clk 0:02:54]} 6. Qxd4 {[%clk 0:02:43]}  Bxf3 {[%clk 0:02:53]} 7. gxf3 {[%clk 0:02:42]}  Nc6 {[%clk 0:02:54]} 8. Qg1 {[%clk 0:02:37]}  e6 {[%clk 0:02:46]} 9. Bd3 {[%clk 0:02:36]}  g6 {[%clk 0:02:43]} 10. Nc3 {[%clk 0:02:33]}  Qh4+ {[%clk 0:02:40]} 11. Qg3 {[%clk 0:02:29]}  Qd8 {[%clk 0:02:29]} 12. Bd2 {[%clk 0:02:28]}  a6 {[%clk 0:02:20]} 13. h4 {[%clk 0:02:26]}  h5 {[%clk 0:02:17]} 14. O-O-O {[%clk 0:02:23]}  Nge7 {[%clk 0:02:16]} 15. Qf2 {[%clk 0:02:14]}  Nb4 {[%clk 0:02:14]} 16. Be2 {[%clk 0:02:09]}  Rc8 {[%clk 0:01:55]} 17. Kb1 {[%clk 0:02:07]}  Nf5 {[%clk 0:01:54]} 18. a3 {[%clk 0:01:50]}  Bc5 {[%clk 0:01:50]} 19. Qe1 {[%clk 0:01:46]}  Nc6 {[%clk 0:01:44]} 20. Bd3 {[%clk 0:01:45]}  Nce7 {[%clk 0:01:36]} 21. Na4 {[%clk 0:01:42]}  Bd4 {[%clk 0:01:28]} 22. Ba5 {[%clk 0:01:40]}  b6 {[%clk 0:01:26]} 23. Bb4 {[%clk 0:01:37]}  b5 {[%clk 0:01:22]} 24. Nc3 {[%clk 0:01:26]}  Qb6 {[%clk 0:01:17]} 25. Ne2 {[%clk 0:01:22]}  Bf2 {[%clk 0:01:10]} 26. Qf1 {[%clk 0:01:19]}  Bc5 {[%clk 0:01:03]} 27. Bxc5 {[%clk 0:01:18]}  Qxc5 {[%clk 0:01:03]} 28. Qe1 {[%clk 0:01:14]}  Ne3 {[%clk 0:00:54]} 29. Rc1 {[%clk 0:01:08]}  Nc4 {[%clk 0:00:51]} 30. Ka2 {[%clk 0:01:04]}  a5 {[%clk 0:00:50]} 31. Bxc4 {[%clk 0:00:58]}  Qxc4+ {[%clk 0:00:50]} 32. b3 {[%clk 0:00:53]}  Qc7 {[%clk 0:00:50]} 33. Nd4 {[%clk 0:00:50]}  Qb6 {[%clk 0:00:46]} 34. Qe3 {[%clk 0:00:46]}  a4 {[%clk 0:00:42]} 35. b4 {[%clk 0:00:45]}  Rc4 {[%clk 0:00:40]} 36. Rhd1 {[%clk 0:00:38]}  Kd7 {[%clk 0:00:25]} 37. c3 {[%clk 0:00:37]}  Rhc8 {[%clk 0:00:24]} 38. Kb2 {[%clk 0:00:33]}  Ke8 {[%clk 0:00:24]} 39. f5 {[%clk 0:00:30]}  gxf5 {[%clk 0:00:20]} 40. Rd3 {[%clk 0:00:25]}  Ng6 {[%clk 0:00:17]} 41. Qg5 {[%clk 0:00:23]}  Nxe5 {[%clk 0:00:13]} 42. Re3 {[%clk 0:00:17]}  Qc7 {[%clk 0:00:10]} 43. Nxb5 {[%clk 0:00:13]}  Qb8 {[%clk 0:00:10]} 44. Qg8+ {[%clk 0:00:10]}  Kd7 {[%clk 0:00:10]} 45. Qg5 {[%clk 0:00:08]}  Rg8 {[%clk 0:00:10]} 46. Qf4 {[%clk 0:00:06]}  Rxf4 {[%clk 0:00:09]} 47. Nd4 {[%clk 0:00:00]}  Nc4+ {[%clk 0:00:09]} 0-1


[Site "https://www.chess.com"]

[Event "Titled Tuesday Blitz May 16 Early 2023"]
[White "agvania123"]
[Black "Fernandez Garcia, Gumersindo"]
[BlackFideId "24516740"]
[WhiteElo "2232"]
[BlackElo "2093"]
[Result "1-0"]
[Round "06"]
[TimeControl "180+2"]
[Date "2023.05.16"]
[WhiteClock "0:00:48"]
[BlackClock "0:00:42"]

1. c4 {[%clk 0:03:00]}  e5 {[%clk 0:02:59]} 2. Nc3 {[%clk 0:03:00]}  Nf6 {[%clk 0:02:58]} 3. Nf3 {[%clk 0:03:01]}  e4 {[%clk 0:02:59]} 4. Ng5 {[%clk 0:02:54]}  b5 {[%clk 0:02:59]} 5. Ngxe4 {[%clk 0:02:49]}  Nxe4 {[%clk 0:02:58]} 6. Nxe4 {[%clk 0:02:50]}  bxc4 {[%clk 0:02:58]} 7. e3 {[%clk 0:02:49]}  d5 {[%clk 0:02:58]} 8. Nc3 {[%clk 0:02:49]}  Be7 {[%clk 0:02:34]} 9. d4 {[%clk 0:02:49]}  cxd3 {[%clk 0:02:35]} 10. Bxd3 {[%clk 0:02:48]}  O-O {[%clk 0:02:34]} 11. O-O {[%clk 0:02:48]}  c6 {[%clk 0:02:34]} 12. b3 {[%clk 0:02:44]}  Bf6 {[%clk 0:02:33]} 13. Bb2 {[%clk 0:02:44]}  Nd7 {[%clk 0:02:24]} 14. Qc2 {[%clk 0:02:36]}  g6 {[%clk 0:02:23]} 15. Rac1 {[%clk 0:02:32]}  Ne5 {[%clk 0:02:20]} 16. Be2 {[%clk 0:02:27]}  Qd6 {[%clk 0:02:20]} 17. Rfd1 {[%clk 0:02:11]}  Qb8 {[%clk 0:02:05]} 18. g3 {[%clk 0:02:03]}  h5 {[%clk 0:02:02]} 19. h4 {[%clk 0:01:52]}  Bg4 {[%clk 0:01:54]} 20. Bxg4 {[%clk 0:01:41]}  hxg4 {[%clk 0:01:54]} 21. Ne2 {[%clk 0:01:39]}  Nf3+ {[%clk 0:01:52]} 22. Kg2 {[%clk 0:01:39]}  Bxh4 {[%clk 0:01:47]} 23. Qc3 {[%clk 0:01:27]}  f6 {[%clk 0:01:47]} 24. Qxc6 {[%clk 0:01:26]}  Rf7 {[%clk 0:01:30]} 25. Qxd5 {[%clk 0:01:21]}  Kg7 {[%clk 0:01:31]} 26. Nf4 {[%clk 0:01:13]}  Bg5 {[%clk 0:01:21]} 27. Ne6+ {[%clk 0:01:12]}  Kg8 {[%clk 0:01:19]} 28. Nxg5 {[%clk 0:01:08]}  Nxg5 {[%clk 0:01:19]} 29. Rh1 {[%clk 0:01:06]}  Qb7 {[%clk 0:01:08]} 30. Qxb7 {[%clk 0:01:03]}  Rxb7 {[%clk 0:01:09]} 31. Bxf6 {[%clk 0:01:02]}  Nf7 {[%clk 0:01:10]} 32. Rc4 {[%clk 0:00:59]}  Rb6 {[%clk 0:00:57]} 33. Bd4 {[%clk 0:00:59]}  Re6 {[%clk 0:00:55]} 34. Rc7 {[%clk 0:00:58]}  a5 {[%clk 0:00:53]} 35. Rxf7 {[%clk 0:00:48]}  Kxf7 {[%clk 0:00:42]} 36. Rh7+ {[%clk 0:00:48]} 1-0


[Site "https://www.chess.com"]

[Event "Titled Tuesday Blitz May 16 Early 2023"]
[White "Li, Hui"]
[Black "Guevara Sanchez, Erick Marvin"]
[WhiteFideId "15400310"]
[BlackFideId "6700136"]
[WhiteElo "1966"]
[BlackElo "2040"]
[Result "1-0"]
[Round "06"]
[TimeControl "180+2"]
[Date "2023.05.16"]
[WhiteClock "0:00:53"]
[BlackClock "0:00:00"]

1. e4 {[%clk 0:03:00]}  c5 {[%clk 0:02:59]} 2. Nf3 {[%clk 0:03:00]}  Nc6 {[%clk 0:02:59]} 3. d4 {[%clk 0:03:00]}  cxd4 {[%clk 0:03:00]} 4. Nxd4 {[%clk 0:03:01]}  Nf6 {[%clk 0:03:00]} 5. Nc3 {[%clk 0:03:01]}  e5 {[%clk 0:03:01]} 6. Ndb5 {[%clk 0:03:01]}  d6 {[%clk 0:02:59]} 7. Bg5 {[%clk 0:03:01]}  a6 {[%clk 0:02:58]} 8. Na3 {[%clk 0:03:02]}  b5 {[%clk 0:02:54]} 9. Nd5 {[%clk 0:03:02]}  Be7 {[%clk 0:02:54]} 10. Bxf6 {[%clk 0:03:02]}  Bxf6 {[%clk 0:02:53]} 11. c3 {[%clk 0:03:03]}  Bg5 {[%clk 0:02:53]} 12. Nc2 {[%clk 0:03:03]}  Ne7 {[%clk 0:02:44]} 13. Nxe7 {[%clk 0:02:53]}  Qxe7 {[%clk 0:02:43]} 14. a4 {[%clk 0:02:53]}  bxa4 {[%clk 0:02:40]} 15. Rxa4 {[%clk 0:02:51]}  Bb7 {[%clk 0:02:40]} 16. Nb4 {[%clk 0:02:38]}  Bxe4 {[%clk 0:02:30]} 17. Nd5 {[%clk 0:02:25]}  Bxd5 {[%clk 0:02:19]} 18. Qxd5 {[%clk 0:02:26]}  O-O {[%clk 0:02:13]} 19. Bc4 {[%clk 0:02:26]}  h5 {[%clk 0:01:33]} 20. O-O {[%clk 0:02:23]}  h4 {[%clk 0:01:33]} 21. Rd1 {[%clk 0:02:23]}  Rfd8 {[%clk 0:01:28]} 22. Rxa6 {[%clk 0:02:17]}  Rxa6 {[%clk 0:01:23]} 23. Bxa6 {[%clk 0:02:18]}  h3 {[%clk 0:01:20]} 24. g3 {[%clk 0:02:15]}  Kf8 {[%clk 0:01:11]} 25. Bf1 {[%clk 0:02:14]}  Qd7 {[%clk 0:01:06]} 26. b4 {[%clk 0:02:04]}  Ke7 {[%clk 0:00:59]} 27. b5 {[%clk 0:01:56]}  Rb8 {[%clk 0:00:59]} 28. c4 {[%clk 0:01:49]}  Qb7 {[%clk 0:00:57]} 29. Qxb7+ {[%clk 0:01:48]}  Rxb7 {[%clk 0:00:56]} 30. Bxh3 {[%clk 0:01:48]}  g6 {[%clk 0:00:41]} 31. Bg2 {[%clk 0:01:47]}  Rb6 {[%clk 0:00:37]} 32. Bd5 {[%clk 0:01:44]}  f5 {[%clk 0:00:30]} 33. Ra1 {[%clk 0:01:44]}  Bd2 {[%clk 0:00:24]} 34. Ra7+ {[%clk 0:01:42]}  Kf6 {[%clk 0:00:23]} 35. Ra6 {[%clk 0:01:37]}  Rb8 {[%clk 0:00:11]} 36. Rxd6+ {[%clk 0:01:37]}  Kg5 {[%clk 0:00:10]} 37. h4+ {[%clk 0:01:30]}  Kh6 {[%clk 0:00:08]} 38. Bf7 {[%clk 0:01:29]}  Bc3 {[%clk 0:00:04]} 39. Bxg6 {[%clk 0:01:24]}  f4 {[%clk 0:00:03]} 40. Be4+ {[%clk 0:01:19]}  Kg7 {[%clk 0:00:03]} 41. g4 {[%clk 0:01:14]}  Kf7 {[%clk 0:00:02]} 42. g5 {[%clk 0:01:13]}  Ke7 {[%clk 0:00:02]} 43. Rd1 {[%clk 0:01:12]}  Rc8 {[%clk 0:00:01]} 44. Bd5 {[%clk 0:01:08]}  Rc7 {[%clk 0:00:01]} 45. b6 {[%clk 0:01:08]}  Rc8 {[%clk 0:00:01]} 46. b7 {[%clk 0:01:09]}  Rb8 {[%clk 0:00:01]} 47. h5 {[%clk 0:01:09]}  Bd4 {[%clk 0:00:01]} 48. Kg2 {[%clk 0:01:08]}  Kd6 {[%clk 0:00:01]} 49. Kf3 {[%clk 0:01:07]}  Kc7 {[%clk 0:00:01]} 50. g6 {[%clk 0:01:04]}  Rh8 {[%clk 0:00:02]} 51. g7 {[%clk 0:01:03]}  e4+ {[%clk 0:00:01]} 52. Kxe4 {[%clk 0:01:03]}  Bxg7 {[%clk 0:00:00]} 53. Rb1 {[%clk 0:00:53]} 1-0


[Site "https://www.chess.com"]